{"text_format":"1","workbook":"xlsx","n_sheets":3,"sheets":["Instrumentpanel","Utrustningslista","Pivotdata"],"not_rendered":{"charts":0,"images":0,"macros":1,"external_links":0,"defined_names":13,"comments":0,"pivot_tables":1},"unopened":[],"bounds":{"document_bytes":16777216,"sheet_cells":100000,"rows_first":2000,"rows_last":500,"rows_between":2000,"halvings":0,"cell_chars":16384,"cell_head_chars":4096},"cells_cut":0,"cells_raw":0,"read":"whole","date_system":"1900"}

{"sheet":"Instrumentpanel","index":0,"n_rows":20,"n_cols":6,"rows_kept":20,"cut":false,"hidden":false,"merged":[]}
[null,"Instrumentpanel"]
[]
[]
[null,null,null,null,null,"Totalsumma"]
[null,null,null,null,null,{"$f":"GETPIVOTDATA(\"Antal\",Pivotdata!$B$11)","v":3}]
[]
[null,null,null,null,null,"Totala månadskostnader"]
[null,null,null,null,null,{"$f":"GETPIVOTDATA(\"Totala månadskostnader\",Pivotdata!$B$11)","v":1765.5943035068672}]
[]
[null,null,null,null,null,"Driftkostnader"]
[null,null,null,null,null,{"$f":"GETPIVOTDATA(\"Månadsbetalning \",Pivotdata!$B$11)","v":1160.5943035068672}]
[]
[null,null,null,null,null,"Månatlig värdeminskning"]
[null,null,null,null,null,{"$f":"GETPIVOTDATA(\"Månatlig värdeminskning \",Pivotdata!$B$11)","v":659.72222222222217}]
[]
[null,null,null,null,null,"Betalningsbelopp"]
[null,null,null,null,null,{"$f":"GETPIVOTDATA(\"Månadsbetalning \",Pivotdata!$B$11)","v":1160.5943035068672}]
[]
[null,null,null,null,null,"Aktuellt värde"]
[null,null,null,null,null,{"$f":"GETPIVOTDATA(\"Aktuellt värde \",Pivotdata!$B$11)","v":37380.821917808222}]

{"sheet":"Utrustningslista","index":1,"n_rows":9,"n_cols":20,"rows_kept":9,"cut":false,"hidden":false,"merged":[]}
[null,"Utrustningslista"]
[]
[null,null,null,"Markera när kvarvarande månatliga betalningar är färre än: ",20]
[]
[null,"Tillgång eller serienummer","Artikelbeskrivning\n(Utförande och modell)","Plats","Villkor","Leverantör","Antal kvarvarande tjänsteår ","Initialvärde","Handpenning","Inköps- eller leasingtid","Lånevillkor (år)","Låneränta","Månatliga\ndriftkostnader","Förväntat värde vid kontraktsslut","Kvarvarande månatliga betalningar","Månadsbetalning","Totala månadskostnader","Årlig värdeminskning\n(rak linje)","Månatlig värdeminskning\n(rak linje)","Aktuellt värde"]
[null,123,"Utförande/modell 1","Huvudavdelning","Bra","Plats",5,30000,5000,"2011-01-15",4,0.1,200,20000,{"$f":"IFERROR(SUMPRODUCT(--(DAY(ROW(OFFSET($A$1,,,DATE(YEAR(Utrustning[[#This Row],[Inköps- eller leasingtid]])+Utrustning[[#This Row],[Lånevillkor (år)]],MONTH(Utrustning[[#This Row],[Inköps- eller leasingtid]])-1,DAY(Utrustning[[#This Row],[Inköps- eller leasingtid]]))-TODAY()))+DATE(YEAR(Utrustning[[#This Row],[Inköps- eller leasingtid]])+Utrustning[[#This Row],[Lånevillkor (år)]],MONTH(Utrustning[[#This Row],[Inköps- eller leasingtid]]),DAY(Utrustning[[#This Row],[Inköps- eller leasingtid]]))-1)=DAY(Utrustning[[#This Row],[Inköps- eller leasingtid]]))),0)","v":25},{"$f":"IFERROR(-(Utrustning[Initialvärde]>0)*(Utrustning[Initialvärde]<>Utrustning[Handpenning])*PMT(Utrustning[Låneränta]/MånaderPåEttÅr,Utrustning[Lånevillkor (år)]*MånaderPåEttÅr,Utrustning[Initialvärde]-Utrustning[Handpenning]),0)","v":634.06458586867973},{"$f":"Utrustning[[#This Row],[Månadsbetalning]]+Utrustning[Månatliga\ndriftkostnader]","v":834.06458586867973},{"$f":"IFERROR((Utrustning[Initialvärde]>0)*SLN(Utrustning[Initialvärde],Utrustning[Förväntat värde vid kontraktsslut],Utrustning[Lånevillkor (år)]),0)","v":2500},{"$f":"IFERROR(Utrustning[Årlig värdeminskning\n(rak linje)]/MånaderPåEttÅr,0)","v":208.33333333333334},{"$f":"IFERROR(Utrustning[Initialvärde]-(Utrustning[Årlig värdeminskning\n(rak linje)]*((TODAY()-Utrustning[Inköps- eller leasingtid])/DagarPåÅret)),0)","v":25315.068493150684}]
[null,234,"Utförande/modell 2","Huvudavdelning","Bra","Plats",4,12500,1500,"2011-03-10",3,7.7499999999999999E-2,120,3000,{"$f":"IFERROR(SUMPRODUCT(--(DAY(ROW(OFFSET($A$1,,,DATE(YEAR(Utrustning[[#This Row],[Inköps- eller leasingtid]])+Utrustning[[#This Row],[Lånevillkor (år)]],MONTH(Utrustning[[#This Row],[Inköps- eller leasingtid]])-1,DAY(Utrustning[[#This Row],[Inköps- eller leasingtid]]))-TODAY()))+DATE(YEAR(Utrustning[[#This Row],[Inköps- eller leasingtid]])+Utrustning[[#This Row],[Lånevillkor (år)]],MONTH(Utrustning[[#This Row],[Inköps- eller leasingtid]]),DAY(Utrustning[[#This Row],[Inköps- eller leasingtid]]))-1)=DAY(Utrustning[[#This Row],[Inköps- eller leasingtid]]))),0)","v":15},{"$f":"IFERROR(-(Utrustning[Initialvärde]>0)*(Utrustning[Initialvärde]<>Utrustning[Handpenning])*PMT(Utrustning[Låneränta]/MånaderPåEttÅr,Utrustning[Lånevillkor (år)]*MånaderPåEttÅr,Utrustning[Initialvärde]-Utrustning[Handpenning]),0)","v":343.43280007691891},{"$f":"Utrustning[[#This Row],[Månadsbetalning]]+Utrustning[Månatliga\ndriftkostnader]","v":463.43280007691891},{"$f":"IFERROR((Utrustning[Initialvärde]>0)*SLN(Utrustning[Initialvärde],Utrustning[Förväntat värde vid kontraktsslut],Utrustning[Lånevillkor (år)]),0)","v":3166.6666666666665},{"$f":"IFERROR(Utrustning[Årlig värdeminskning\n(rak linje)]/MånaderPåEttÅr,0)","v":263.88888888888886},{"$f":"IFERROR(Utrustning[Initialvärde]-(Utrustning[Årlig värdeminskning\n(rak linje)]*((TODAY()-Utrustning[Inköps- eller leasingtid])/DagarPåÅret)),0)","v":7034.2465753424658}]
[null,345,"Utförande/modell 2","Avdelning 1","Okej","Övrigt",1,10000,2500,"2010-09-15",4,0.08,285,1000,{"$f":"IFERROR(SUMPRODUCT(--(DAY(ROW(OFFSET($A$1,,,DATE(YEAR(Utrustning[[#This Row],[Inköps- eller leasingtid]])+Utrustning[[#This Row],[Lånevillkor (år)]],MONTH(Utrustning[[#This Row],[Inköps- eller leasingtid]])-1,DAY(Utrustning[[#This Row],[Inköps- eller leasingtid]]))-TODAY()))+DATE(YEAR(Utrustning[[#This Row],[Inköps- eller leasingtid]])+Utrustning[[#This Row],[Lånevillkor (år)]],MONTH(Utrustning[[#This Row],[Inköps- eller leasingtid]]),DAY(Utrustning[[#This Row],[Inköps- eller leasingtid]]))-1)=DAY(Utrustning[[#This Row],[Inköps- eller leasingtid]]))),0)","v":21},{"$f":"IFERROR(-(Utrustning[Initialvärde]>0)*(Utrustning[Initialvärde]<>Utrustning[Handpenning])*PMT(Utrustning[Låneränta]/MånaderPåEttÅr,Utrustning[Lånevillkor (år)]*MånaderPåEttÅr,Utrustning[Initialvärde]-Utrustning[Handpenning]),0)","v":183.09691756126861},{"$f":"Utrustning[[#This Row],[Månadsbetalning]]+Utrustning[Månatliga\ndriftkostnader]","v":468.09691756126858},{"$f":"IFERROR((Utrustning[Initialvärde]>0)*SLN(Utrustning[Initialvärde],Utrustning[Förväntat värde vid kontraktsslut],Utrustning[Lånevillkor (år)]),0)","v":2250},{"$f":"IFERROR(Utrustning[Årlig värdeminskning\n(rak linje)]/MånaderPåEttÅr,0)","v":187.5},{"$f":"IFERROR(Utrustning[Initialvärde]-(Utrustning[Årlig värdeminskning\n(rak linje)]*((TODAY()-Utrustning[Inköps- eller leasingtid])/DagarPåÅret)),0)","v":5031.5068493150684}]
[null,"Total"]

{"sheet":"Pivotdata","index":2,"n_rows":15,"n_cols":8,"rows_kept":15,"cut":false,"hidden":true,"merged":[]}
[null,"Pivotdata"]
[null,"Det här bladet ska vara dolt. Om du ändrar pivottabellstrukturen kan det orsaka fel i instrumentpanelutsnitten."]
[]
[null,"Artikelbeskrivning\n(Utförande och modell)","(Alla)"]
[null,"Plats","(Alla)"]
[null,"Villkor","(Alla)"]
[null,"Leverantör","(Alla)"]
[null,"Antal kvarvarande tjänsteår ","(Alla)"]
[null,"Lånevillkor (år)","(Alla)"]
[]
[null,"Radetiketter","Antal","Månatliga","Månadsbetalning ","Totala månadskostnader ","Månatlig värdeminskning ","Aktuellt värde "]
[null,123,1,200,634.06458586867973,834.06458586867973,208.33333333333334,25315.068493150684]
[null,234,1,120,343.43280007691891,463.43280007691891,263.88888888888886,7034.2465753424658]
[null,345,1,285,183.09691756126861,468.09691756126858,187.5,5031.5068493150684]
[null,"Totalsumma",3,605,1160.5943035068672,1765.5943035068672,659.72222222222217,37380.821917808222]